fUSD/lending_fUSD_20260408
["ID","MTS","AMOUNT","RATE_DAILY","PERIOD"]
[420056407,1775638242383,-500.0,0.00013698,2]
[420056408,1775638242394,-500.0,0.00013698,2]
[420056409,1775638242403,-500.0,0.00013698,2]
[420056410,1775638242413,-500.0,0.00013698,2]
[420056411,1775638242423,-500.0,0.00013698,2]
[420056412,1775638242433,-500.0,0.00013698,2]
[420056413,1775638242443,-500.0,0.00013698,2]
[420056414,1775638242452,-500.0,0.00013698,2]
[420056415,1775638242462,-542.71692042,0.00013698,2]
[420056416,1775638242472,-500.0,0.00013698,2]
[420056417,1775638242481,-500.0,0.00013698,2]
[420056418,1775638242491,-500.0,0.00013698,2]
[420056419,1775638242500,-500.0,0.00013698,2]
[420056420,1775638242510,-500.0,0.00013698,2]
[420056421,1775638242519,-500.0,0.00013698,2]
[420056422,1775638242529,-500.0,0.00013698,2]
[420056423,1775638242538,-500.0,0.00013698,2]
[420056424,1775638242548,-500.0,0.00013698,2]
[420056425,1775638242559,-500.0,0.00013698,2]
[420056426,1775638242568,-562.38643831,0.00013698,2]
[420056427,1775638242578,-500.0,0.00013698,2]
[420056428,1775638242588,-500.0,0.00013698,2]
[420056429,1775638242598,-500.0,0.00013698,2]
[420056430,1775638242608,-500.0,0.00013698,2]
[420056431,1775638242617,-500.0,0.00013698,2]
[420056432,1775638242627,-500.0,0.00013698,2]
[420056433,1775638242636,-500.0,0.00013698,2]
[420056434,1775638242646,-500.0,0.00013698,2]
[420056435,1775638242657,-500.0,0.00013698,2]
[420056436,1775638242667,-500.0,0.00013698,2]
[420056437,1775638242676,-500.0,0.00013698,2]
[420056438,1775638242687,-500.0,0.00013698,2]
[420056439,1775638242696,-500.0,0.00013698,2]
[420056440,1775638242706,-500.0,0.00013698,2]
[420056441,1775638242716,-500.0,0.00013698,2]
[420056442,1775638242725,-500.0,0.00013698,2]
[420056443,1775638242736,-500.0,0.00013698,2]
[420056444,1775638242746,-500.0,0.00013698,2]
[420056445,1775638242756,-215.39830433,0.00013698,2]
[420056446,1775638242766,-553.39225555,0.00013698,2]
[420056447,1775638242776,-823.97,0.00013698,2]
[420056448,1775638242785,-823.97,0.00013698,2]
[420056449,1775638242794,-823.97,0.00013698,2]
[420056450,1775638242804,-823.97,0.00013698,2]
[420056451,1775638242813,-823.97,0.00013698,2]
[420056452,1775638242823,-823.97,0.00013698,2]
[420056453,1775638242833,-823.97,0.00013698,2]
[420056454,1775638242843,-823.97,0.00013698,2]
[420056455,1775638242852,-823.97,0.00013698,2]
[420056456,1775638242862,-823.97,0.00013698,2]
[420056457,1775638242872,-823.97,0.00013698,2]
[420056458,1775638242882,-823.97,0.00013698,2]
[420056459,1775638242891,-823.97,0.00013698,2]
[420056460,1775638242900,-823.97,0.00013698,2]
[420056461,1775638242909,-823.97,0.00013698,2]
[420056462,1775638242919,-823.97,0.00013698,2]
[420056463,1775638242928,-823.97,0.00013698,2]
[420056464,1775638242938,-823.97,0.00013698,2]
[420056465,1775638242947,-823.97,0.00013698,2]
[420056466,1775638242958,-500.0,0.00013698,2]
[420056467,1775638242968,-500.0,0.00013698,2]
[420056468,1775638242977,-500.0,0.00013698,2]
[420056469,1775638242992,-264.78361919,0.00013698,2]
[420056470,1775638243008,-500.0,0.00013698,2]
[420056471,1775638243019,-500.0,0.00013698,2]
[420056472,1775638243029,-633.831471,0.00013698,2]
[420056473,1775638243040,-500.0,0.00013698,2]
[420056474,1775638243052,-500.0,0.00013698,2]
[420056475,1775638243062,-500.0,0.00013698,2]
[420056476,1775638243073,-500.0,0.00013698,2]
[420056477,1775638243085,-500.0,0.00013698,2]
[420056478,1775638243095,-500.0,0.00013698,2]
[420056479,1775638243107,-500.0,0.00013698,2]
[420056480,1775638243118,-500.0,0.00013698,2]
[420056481,1775638243129,-500.0,0.00013698,2]
[420056482,1775638243141,-500.0,0.00013698,2]
[420056483,1775638243152,-500.0,0.00013698,2]
[420056484,1775638243163,-500.0,0.00013698,2]
[420056485,1775638243174,-500.0,0.00013698,2]
[420056486,1775638243184,-223.3967903,0.00013698,2]
[420056487,1775638243195,-500.03954585,0.00013698,2]
[420056489,1775638243206,-500.0,0.00013698,2]
[420056491,1775638243217,-500.0,0.00013698,2]
[420056492,1775638243228,-500.0,0.00013698,2]
[420056493,1775638243238,-500.0,0.00013698,2]
[420056494,1775638243250,-454.40497159,0.00013698,2]
[420056495,1775638243260,-568.74,0.00013698,2]
[420056496,1775638243270,-568.74,0.00013698,2]
[420056497,1775638243281,-568.74,0.00013698,2]
[420056498,1775638243292,-568.74,0.00013698,2]
[420056499,1775638243303,-568.74,0.00013698,2]
[420056500,1775638243313,-568.74,0.00013698,2]
[420056501,1775638243324,-568.74,0.00013698,2]
[420056502,1775638243334,-568.74,0.00013698,2]
[420056503,1775638243345,-568.74,0.00013698,2]
[420056504,1775638243356,-568.74,0.00013698,2]
[420056505,1775638243366,-568.74,0.00013698,2]
[420056506,1775638243376,-568.74,0.00013698,2]
[420056507,1775638243387,-568.74,0.00013698,2]
[420056508,1775638243397,-568.74,0.00013698,2]
[420056509,1775638243407,-568.74,0.00013698,2]
[420056510,1775638243418,-568.74,0.00013698,2]
[420056511,1775638243429,-568.74,0.00013698,2]
[420056512,1775638243440,-568.74,0.00013698,2]
[420056513,1775638243450,-568.74,0.00013698,2]
[420056514,1775638243461,-500.0,0.00013698,2]
[420056515,1775638243473,-500.0,0.00013698,2]
[420056516,1775638243483,-500.0,0.00013698,2]
[420056517,1775638243494,-500.0,0.00013698,2]
[420056519,1775638243505,-500.0,0.00013698,2]
[420056520,1775638243515,-500.0,0.00013698,2]
[420056521,1775638243525,-500.0,0.00013698,2]
[420056522,1775638243535,-467.66178343,0.00013698,2]
[420056523,1775638243544,-500.0,0.00013698,2]
[420056524,1775638243555,-500.0,0.00013698,2]
[420056525,1775638243566,-500.0,0.00013698,2]
[420056526,1775638243576,-500.0,0.00013698,2]
[420056527,1775638243587,-500.0,0.00013698,2]
[420056528,1775638243597,-500.0,0.00013698,2]
[420056529,1775638243608,-500.0,0.00013698,2]
[420056530,1775638243618,-500.0,0.00013698,2]
[420056531,1775638243628,-500.0,0.00013698,2]
[420056532,1775638243639,-500.0,0.00013698,2]
[420056533,1775638243649,-248.76967055,0.00013698,2]
[420056534,1775638243660,-500.0,0.00013698,2]
[420056535,1775638243671,-500.0,0.00013698,2]
[420056536,1775638243682,-500.0,0.00013698,2]
[420056537,1775638243693,-500.0,0.00013698,2]
[420056538,1775638243703,-500.0,0.00013698,2]
[420056539,1775638243713,-500.0,0.00013698,2]
[420056540,1775638243724,-500.0,0.00013698,2]
[420056541,1775638243735,-500.0,0.00013698,2]
[420056542,1775638243746,-637.2484516,0.00013698,2]
[420056543,1775638243757,-500.0,0.00013698,2]
[420056544,1775638243767,-500.0,0.00013698,2]
[420056545,1775638243778,-500.0,0.00013698,2]
[420056546,1775638243788,-500.0,0.00013698,2]
[420056547,1775638243802,-500.0,0.00013698,2]
[420056548,1775638243813,-500.0,0.00013698,2]
[420056549,1775638243823,-500.0,0.00013698,2]
[420056550,1775638243833,-500.0,0.00013698,2]
[420056551,1775638243844,-500.0,0.00013698,2]
[420056552,1775638243854,-500.0,0.00013698,2]
[420056553,1775638243864,-500.0,0.00013698,2]
[420056554,1775638243875,-500.0,0.00013698,2]
[420056555,1775638243886,-500.0,0.00013698,2]
[420056556,1775638243896,-500.0,0.00013698,2]
[420056557,1775638243906,-522.8150328,0.00013698,2]
[420056558,1775638243916,-500.0,0.00013698,2]
[420056559,1775638243926,-500.0,0.00013698,2]
[420056560,1775638243937,-500.0,0.00013698,2]
[420056561,1775638243947,-500.0,0.00013698,2]
[420056562,1775638243958,-500.0,0.00013698,2]
[420056563,1775638243969,-500.0,0.00013698,2]
[420056564,1775638243980,-500.0,0.00013698,2]
[420056565,1775638243991,-500.0,0.00013698,2]
[420056566,1775638244002,-500.14075642,0.00013698,2]
[420056567,1775638244013,-500.0,0.00013698,2]
[420056568,1775638244024,-500.0,0.00013698,2]
[420056569,1775638244034,-500.0,0.00013698,2]
[420056570,1775638244044,-500.0,0.00013698,2]
[420056571,1775638244054,-500.0,0.00013698,2]
[420056572,1775638244064,-500.0,0.00013698,2]
[420056573,1775638244074,-500.0,0.00013698,2]
[420056574,1775638244083,-500.0,0.00013698,2]
[420056575,1775638244093,-500.0,0.00013698,2]
[420056576,1775638244102,-500.0,0.00013698,2]
[420056577,1775638244111,-500.0,0.00013698,2]
[420056578,1775638244121,-500.0,0.00013698,2]
[420056579,1775638244131,-500.0,0.00013698,2]
[420056580,1775638244142,-514.41880912,0.00013698,2]
[420056581,1775638244152,-500.0,0.00013698,2]
[420056582,1775638244162,-500.0,0.00013698,2]
[420056583,1775638244172,-500.0,0.00013698,2]
[420056584,1775638244182,-500.0,0.00013698,2]
[420056585,1775638244192,-500.0,0.00013698,2]
[420056586,1775638244202,-500.0,0.00013698,2]
[420056587,1775638244213,-500.0,0.00013698,2]
[420056588,1775638244222,-595.48595604,0.00013698,2]
[420056589,1775638244232,-150.0,0.00013699,2]
[420056590,1775638244242,-150.0,0.00013699,2]
[420056591,1775638244253,-150.0,0.00013699,2]
[420056592,1775638244262,-2138.0,0.00013699,2]
[420056593,1775638244272,-166.66,0.00013699,2]
[420056594,1775638244281,-2885.74,0.00013699,2]
[420056595,1775638244291,-476.15,0.00013699,2]
[420056596,1775638244301,-396.8,0.00013699,2]
[420056597,1775638244311,-330.66,0.00013699,2]
[420056598,1775638244320,-275.55,0.00013699,2]
[420056599,1775638244330,-229.63,0.00013699,2]
[420056600,1775638244339,-191.36,0.00013699,2]
[420056601,1775638244350,-159.46,0.00013699,2]
[420056602,1775638244360,-797.34,0.00013699,2]
[420056603,1775638244370,-153.97,0.00013699,2]
[420056604,1775638244381,-964.0,0.00013699,2]
[420056605,1775638244391,-964.0,0.00013699,2]
[420056606,1775638244402,-964.0,0.00013699,2]
[420056607,1775638244414,-964.0,0.00013699,2]
[420056608,1775638244424,-964.0,0.00013699,2]
[420056609,1775638244435,-964.0,0.00013699,2]
[420056610,1775638244445,-964.0,0.00013699,2]
[420056611,1775638244455,-964.0,0.00013699,2]
[420056612,1775638244466,-964.0,0.00013699,2]
[420056614,1775638244477,-964.0,0.00013699,2]
[420056616,1775638244491,-964.0,0.00013699,2]
[420056618,1775638244502,-964.0,0.00013699,2]
[420056620,1775638244513,-964.0,0.00013699,2]
[420056622,1775638244523,-964.0,0.00013699,2]
[420056624,1775638244534,-964.0,0.00013699,2]
[420056625,1775638244544,-964.0,0.00013699,2]
[420056626,1775638244554,-964.0,0.00013699,2]
[420056627,1775638244564,-964.0,0.00013699,2]
[420056628,1775638244574,-964.0,0.00013699,2]
[420056629,1775638244585,-964.0,0.00013699,2]
[420056630,1775638244595,-964.0,0.00013699,2]
[420056631,1775638244605,-964.0,0.00013699,2]
[420056632,1775638244615,-964.0,0.00013699,2]
[420056633,1775638244626,-985.24465103,0.00013699,2]
[420056634,1775638244637,-365.93,0.00013739,2]
[420056635,1775638244648,-588.0,0.00013808,2]
[420056636,1775638244658,-166.66,0.00013836,2]
[420056637,1775638244669,-1000.0,0.00013897,2]
[420056638,1775638244680,-31451.11543114,0.00013945,2]
[420056639,1775638244690,-150.0,0.00013973,2]
[420056640,1775638244701,-150.0,0.00013973,2]
[420056641,1775638244711,-150.0,0.00013973,2]
[420056642,1775638244722,-166.66,0.00013973,2]
[420056643,1775638244732,-830.65684136,0.00014,2]
[420056644,1775638244743,-1214.55116669,0.00014006,2]
[420056645,1775638244753,-4733.74989347,0.00014006,2]
[420056646,1775638244764,-255.61,0.0001405,2]
[420056647,1775638244775,-191.226445,0.00014095,2]
[420056648,1775638244785,-356.36167,0.00014095,7]
[420056649,1775638244796,-197.641559,0.00014096,7]
[420056650,1775638244806,-166.66,0.0001411,2]
[420056651,1775638244816,-507.0,0.00014179,2]
[420056652,1775638244826,-166.66,0.00014247,2]
[420056653,1775638244836,-150.0,0.00014247,2]
[420056654,1775638244847,-150.0,0.00014247,2]
[420056655,1775638244856,-193.03,0.00014259,2]
[420056656,1775638244867,-365.93,0.00014267,2]
[420056657,1775638244876,-155.0,0.00014279,2]
[420056658,1775638244887,-222.7944,0.000143,2]
[420056659,1775638244897,-166.66,0.00014384,2]
[420056660,1775638244907,-2885.74,0.00014384,2]
[420056661,1775638244917,-786.02,0.00014384,2]
[420056662,1775638244927,-150.0,0.000144,2]
[420056663,1775638244936,-150.0,0.000144,2]
[420056664,1775638244946,-150.11484194,0.000144,2]
[420056665,1775638244956,-150.0,0.000144,2]
[420056666,1775638244966,-150.12907206,0.000144,2]
[420056667,1775638244976,-150.0,0.000144,2]
[420056668,1775638244985,-150.0,0.000144,2]
[420056669,1775638244995,-150.0,0.000144,2]
[420056670,1775638245005,-150.0,0.000144,2]
[420056671,1775638245015,-150.0,0.000144,2]
[420056672,1775638245025,-150.0,0.000144,2]
[420056673,1775638245035,-150.0,0.000144,2]
[420056674,1775638245045,-150.0,0.000144,2]
[420056675,1775638245055,-150.13966067,0.000144,2]
[420056676,1775638245065,-150.0,0.000144,2]
[420056677,1775638245075,-150.0,0.00014424,2]
[420056678,1775638245085,-150.0,0.00014428,2]
[420056679,1775638245094,-299.37,0.00014428,2]
[420056680,1775638245104,-150.0,0.00014432,2]
[420056681,1775638245115,-150.0,0.00014437,2]
[420056682,1775638245125,-255.61,0.0001444,2]
[420056683,1775638245135,-150.0,0.00014441,2]
[420056684,1775638245145,-150.0,0.00014442,2]
[420056685,1775638245156,-150.0,0.00014448,2]
[420056686,1775638245167,-150.0,0.00014455,2]
[420056687,1775638245177,-150.0,0.00014464,2]
[420056688,1775638245186,-150.0,0.00014472,2]
[420056689,1775638245195,-150.0,0.00014474,2]
[420056690,1775638245205,-150.0,0.00014476,2]
[420056691,1775638245215,-150.0,0.00014476,2]
[420056692,1775638245224,-150.0,0.00014482,2]
[420056693,1775638245234,-150.0,0.00014483,2]
[420056694,1775638245245,-150.0,0.00014484,2]
[420056695,1775638245255,-150.0,0.00014496,2]
[420056696,1775638245265,-150.0,0.00014496,2]
[420056697,1775638245276,-150.0,0.0001451,2]
[420056698,1775638245286,-150.0,0.00014512,2]
[420056699,1775638245296,-1001.33638466,0.00014514,2]
[420056700,1775638245305,-1065.16271094,0.00014514,2]
[420056701,1775638245315,-1129.7351467,0.00014514,2]
[420056702,1775638245324,-1084.44108337,0.00014514,2]
[420056703,1775638245334,-1028.89396554,0.00014514,2]
[420056704,1775638245344,-1081.64030405,0.00014514,2]
[420056705,1775638245354,-299.0,0.00014514,5]
[420056706,1775638245364,-150.0,0.00014519,2]
[420056707,1775638245373,-150.0,0.00014523,2]
[420056708,1775638245382,-150.0,0.00014523,2]
[420056709,1775638245392,-150.0,0.00014526,2]
[420056710,1775638245402,-150.0,0.00014528,2]
[420056711,1775638245412,-150.0,0.00014538,2]
[420056712,1775638245422,-150.0,0.00014543,2]
[420056713,1775638245433,-150.0,0.00014549,2]
[420056714,1775638245443,-150.0,0.00014552,2]
[420056715,1775638245453,-150.0,0.00014552,2]
[420056716,1775638245463,-150.0,0.0001456,2]
[420056717,1775638245473,-150.0,0.00014564,2]
[420056718,1775638245483,-150.0,0.00014566,2]
[420056719,1775638245493,-150.0,0.00014567,2]
[420056720,1775638245503,-150.0,0.00014568,2]
[420056721,1775638245513,-150.0,0.00014586,2]
[420056722,1775638245522,-31451.11543114,0.00014586,2]
[420056723,1775638245532,-150.0,0.00014591,2]
[420056724,1775638245542,-150.0,0.00014592,2]
[420056725,1775638245552,-150.0,0.00014593,2]
[420056726,1775638245562,-150.0,0.00014605,2]
[420056727,1775638245572,-150.0,0.00014611,2]
[420056728,1775638245582,-150.0,0.00014615,2]
[420056729,1775638245591,-150.0,0.00014621,2]
[420056730,1775638245600,-150.0,0.00014623,2]
[420056731,1775638245609,-150.0,0.00014624,2]
[420056732,1775638245619,-150.0,0.00014629,2]
[420056733,1775638245629,-150.0,0.00014629,2]
[420056734,1775638245638,-150.0,0.00014639,2]
[420056735,1775638245648,-155.32006583,0.0001464,2]
[420056736,1775638245658,-150.0,0.00014646,2]
[420056737,1775638245668,-150.0,0.00014646,2]
[420056738,1775638245677,-150.0,0.00014648,2]
[420056739,1775638245687,-150.0,0.00014653,2]
[420056740,1775638245696,-150.0,0.00014656,2]
[420056741,1775638245707,-786.02,0.00014658,2]
[420056742,1775638245716,-150.0,0.0001466,2]
[420056743,1775638245725,-150.0,0.00014663,2]
[420056744,1775638245735,-208.85233043,0.0001467,4]
[420056745,1775638245745,-150.0,0.00014676,2]
[420056746,1775638245755,-2494.97,0.00014681,2]
[420056747,1775638245764,-150.0,0.00014687,2]
[420056748,1775638245774,-150.0,0.00014687,2]
[420056749,1775638245785,-150.0,0.00014688,2]
[420056750,1775638245794,-150.0,0.00014695,2]
[420056751,1775638245804,-150.0,0.00014698,2]
[420056752,1775638245813,-150.0,0.00014703,2]
[420056753,1775638245823,-150.0,0.00014705,2]
[420056754,1775638245832,-150.0,0.00014705,2]
[420056755,1775638245841,-150.0,0.0001471,2]
[420056756,1775638245851,-150.0,0.0001472,2]
[420056757,1775638245860,-150.0,0.00014728,2]
[420056758,1775638245870,-150.0,0.00014731,2]
[420056759,1775638245880,-150.0,0.00014734,2]
[420056760,1775638245889,-150.0,0.00014735,2]
[420056761,1775638245899,-150.0,0.00014737,2]
[420056762,1775638245908,-4609.0,0.00014746,2]
[420056763,1775638245918,-150.0,0.00014752,2]
[420056764,1775638245928,-150.0,0.00014758,2]
[420056765,1775638245937,-150.0,0.00014759,2]
[420056766,1775638245946,-150.0,0.00014769,2]
[420056767,1775638245956,-150.0,0.00014769,2]
[420056768,1775638245966,-150.0,0.00014772,2]
[420056769,1775638245974,-150.0,0.00014779,2]
[420056770,1775638245984,-150.0,0.00014781,2]
[420056771,1775638245994,-150.0,0.00014781,2]
[420056772,1775638246003,-150.0,0.00014782,2]
[420056773,1775638246013,-290.34596931,0.00014784,2]
[420056774,1775638246023,-150.0,0.00014784,2]
[420056775,1775638246033,-1252.0,0.00014785,2]
[420056776,1775638246042,-150.0,0.00014786,2]
[420056777,1775638246052,-152.1118183,0.00014792,2]
[420056778,1775638246061,-250.0,0.00014795,2]
[420056779,1775638246071,-150.0,0.000148,2]
[420056780,1775638246080,-150.0,0.00014806,2]
[420056781,1775638246089,-150.0,0.00014809,2]
[420056782,1775638246099,-150.0,0.0001481,2]
[420056783,1775638246108,-299.38773847,0.00014814,2]
[420056784,1775638246118,-150.0,0.00014814,2]
[420056785,1775638246128,-150.0,0.00014816,2]
[420056786,1775638246138,-150.0,0.00014821,2]
[420056787,1775638246148,-150.0,0.0001483,2]
[420056788,1775638246157,-255.61,0.00014831,2]
[420056789,1775638246167,-150.0,0.00014831,2]
[420056790,1775638246177,-150.0,0.00014841,2]
[420056791,1775638246187,-150.0,0.00014847,2]
[420056793,1775638246196,-150.0,0.00014848,2]
[420056794,1775638246207,-150.0,0.00014851,2]
[420056795,1775638246217,-150.0,0.00014854,2]
[420056796,1775638246227,-193.03,0.00014857,2]
[420056797,1775638246236,-150.0,0.00014857,2]
[420056798,1775638246246,-150.0,0.00014857,2]
[420056799,1775638246256,-150.0,0.00014863,2]
[420056800,1775638246267,-150.0,0.00014869,2]
[420056801,1775638246277,-1040.60781575,0.00014873,2]
[420056802,1775638246287,-150.0,0.00014878,2]
[420056803,1775638246297,-150.0,0.0001488,2]
[420056804,1775638246307,-150.0,0.00014884,2]
[420056805,1775638246316,-150.0,0.00014892,2]
[420056806,1775638246326,-150.0,0.00014892,2]
[420056807,1775638246335,-150.0,0.00014897,2]
[420056808,1775638246345,-150.0,0.00014901,2]
[420056809,1775638246356,-150.0,0.00014905,2]
[420056810,1775638246727,-150.0,0.00014912,2]
[420056811,1775638246767,-150.0,0.00014921,2]
[420056812,1775638246777,-150.0,0.00014924,2]
[420056813,1775638246787,-150.0,0.00014925,2]
[420056814,1775638246796,-765.91,0.00014932,2]
[420056815,1775638246805,-150.0,0.00014933,2]
[420056816,1775638246815,-150.0,0.00014933,2]
[420056817,1775638246825,-150.0,0.00014933,2]
[420056818,1775638246834,-150.0,0.00014944,2]
[420056819,1775638246844,-150.0,0.00014947,2]
[420056820,1775638246854,-150.0,0.00014949,2]
[420056821,1775638246864,-150.0,0.00014952,2]
[420056822,1775638246874,-150.0,0.00014958,2]
[420056823,1775638246884,-150.0,0.00014973,2]
[420056824,1775638246894,-150.0,0.00014974,2]
[420056825,1775638246903,-6976.45084756,0.00014975,2]
[420056826,1775638246913,-1950.0,0.00014976,2]
[420056827,1775638246923,-1950.0,0.00014976,2]
[420056828,1775638246933,-1950.0,0.00014976,2]
[420056829,1775638246942,-1950.0,0.00014976,2]
[420056830,1775638246951,-1950.0,0.00014976,2]
[420056831,1775638246960,-1950.0,0.00014976,2]
[420056832,1775638246970,-1950.0,0.00014976,2]
[420056833,1775638246980,-1950.0,0.00014976,2]
[420056834,1775638246991,-1950.0,0.00014976,2]
[420056835,1775638247001,-1906.0,0.00014976,2]
[420056836,1775638247010,-150.0,0.00014976,2]
[420056837,1775638247020,-150.0,0.00014979,2]
[420056838,1775638247030,-150.0,0.00014989,2]
[420056840,1775638247039,-150.0,0.00014995,2]
[420056842,1775638247049,-150.0,0.00014997,2]
[420056844,1775638247059,-300.0,0.00015,2]
[420056845,1775638247068,-160.0,0.00015,2]
[420056846,1775638247078,-150.0,0.00015007,2]
[420056847,1775638247088,-950.0,0.00015008,2]
[420056848,1775638247098,-950.0,0.00015008,2]
[420056849,1775638247107,-950.0,0.00015008,2]
[420056850,1775638247116,-950.0,0.00015008,2]
[420056851,1775638247126,-950.0,0.00015008,2]
[420056852,1775638247136,-950.0,0.00015008,2]
[420056853,1775638247146,-950.0,0.00015008,2]
[420056854,1775638247155,-950.0,0.00015008,2]
[420056855,1775638247165,-950.0,0.00015008,2]
[420056856,1775638247175,-592.0,0.00015008,2]
[420056857,1775638247184,-150.0,0.00015008,2]
[420056858,1775638247194,-150.0,0.0001501,2]
[420056859,1775638247206,-150.0,0.0001501,2]
[420056860,1775638247215,-150.0,0.00015015,2]
[420056861,1775638247225,-150.0,0.00015015,2]
[420056862,1775638247234,-1950.0,0.00015021,2]
[420056863,1775638247243,-1950.0,0.00015021,2]
[420056864,1775638247253,-1950.0,0.00015021,2]
[420056865,1775638247263,-1950.0,0.00015021,2]
[420056866,1775638247273,-1950.0,0.00015021,2]
[420056867,1775638247283,-1950.0,0.00015021,2]
[420056868,1775638247293,-1950.0,0.00015021,2]
[420056869,1775638247303,-1950.0,0.00015021,2]
[420056870,1775638247313,-1950.0,0.00015021,2]
[420056871,1775638247323,-1891.0,0.00015021,2]
[420056872,1775638247333,-150.0,0.00015021,2]
[420056873,1775638247343,-150.0,0.00015032,2]
[420056874,1775638247354,-150.0,0.00015033,2]
[420056875,1775638247365,-150.0,0.00015034,2]
[420056876,1775638247375,-150.0,0.0001504,2]
[420056877,1775638247386,-150.0,0.00015045,2]
[420056878,1775638247397,-150.0,0.00015056,2]
[420056879,1775638247408,-150.0,0.00015062,2]
[420056880,1775638247418,-985.91,0.00015068,2]
[420056881,1775638247429,-2885.74,0.00015068,2]
[420056882,1775638247440,-840.38,0.00015068,2]
[420056883,1775638247450,-150.0,0.00015069,2]
[420056884,1775638247462,-150.0,0.0001507,2]
[420056885,1775638247472,-150.0,0.00015072,2]
[420056886,1775638247483,-150.0,0.00015074,2]
[420056887,1775638247493,-150.0,0.00015086,2]
[420056888,1775638247503,-150.0,0.00015086,2]
[420056889,1775638247513,-150.0,0.0001509,2]
[420056890,1775638247523,-150.0,0.00015093,2]
[420056891,1775638247534,-150.0,0.00015097,2]
[420056892,1775638247544,-150.0,0.00015104,2]
[420056893,1775638247554,-150.0,0.00015107,2]
[420056894,1775638247564,-150.0,0.00015116,2]
[420056895,1775638247574,-150.0,0.00015116,2]
[420056896,1775638247585,-150.0,0.00015117,2]
[420056897,1775638247595,-150.0,0.00015136,2]
[420056898,1775638247605,-150.0,0.00015138,2]
[420056899,1775638247615,-150.0,0.00015138,2]
[420056900,1775638247626,-150.0,0.0001514,2]
[420056901,1775638247636,-150.0,0.00015144,2]
[420056902,1775638247647,-150.0,0.00015145,2]
[420056903,1775638247658,-150.0,0.00015158,2]
[420056904,1775638247667,-150.0,0.00015162,2]
[420056905,1775638247678,-150.0,0.00015162,2]
[420056906,1775638247689,-150.0,0.00015164,2]
[420056907,1775638247699,-150.0,0.00015168,2]
[420056908,1775638247710,-150.0,0.00015172,2]
[420056909,1775638247720,-150.0,0.00015179,2]
[420056910,1775638247730,-150.0,0.00015181,2]
[420056911,1775638247741,-150.0,0.00015188,2]
[420056912,1775638247751,-823.97,0.00015194,2]
[420056913,1775638247761,-823.97,0.00015194,2]
[420056914,1775638247771,-823.97,0.00015194,2]
[420056915,1775638247781,-823.97,0.00015194,2]
[420056916,1775638247790,-824.09706313,0.00015194,2]
[420056917,1775638247801,-568.74,0.00015194,2]
[420056918,1775638247811,-568.74,0.00015194,2]
[420056919,1775638247821,-568.74,0.00015194,2]